[Event "Titled Tuesday Blitz January 17 Early 2023"]
[White "Bashirli, Saadat"]
[Black "Bambino Filho, Antonio Carlos"]
[WhiteFideId "13429990"]
[BlackFideId "2113163"]
[WhiteElo "1571"]
[BlackElo "2144"]
[Result "1-0"]
[Round "03"]
[TimeControl "180+2"]
[Date "2023.01.17"]
[WhiteClock "0:01:20"]
[BlackClock "0:00:42"]

1. e4 {[%clk 0:02:56]}  c5 {[%clk 0:02:59]} 2. Nf3 {[%clk 0:02:56]}  e6 {[%clk 0:02:59]} 3. c4 {[%clk 0:02:53]}  a6 {[%clk 0:02:58]} 4. Nc3 {[%clk 0:02:53]}  d6 {[%clk 0:02:58]} 5. d4 {[%clk 0:02:53]}  cxd4 {[%clk 0:02:59]} 6. Nxd4 {[%clk 0:02:53]}  Nf6 {[%clk 0:02:58]} 7. Be2 {[%clk 0:02:53]}  Be7 {[%clk 0:02:55]} 8. O-O {[%clk 0:02:54]}  O-O {[%clk 0:02:56]} 9. Be3 {[%clk 0:02:50]}  Qc7 {[%clk 0:02:54]} 10. f3 {[%clk 0:02:48]}  b6 {[%clk 0:02:54]} 11. Qc2 {[%clk 0:02:46]}  Bb7 {[%clk 0:02:54]} 12. Rac1 {[%clk 0:02:44]}  Nbd7 {[%clk 0:02:54]} 13. Rfd1 {[%clk 0:02:44]}  Rac8 {[%clk 0:02:53]} 14. Bg5 {[%clk 0:02:39]}  Qb8 {[%clk 0:02:53]} 15. Na4 {[%clk 0:02:36]}  h6 {[%clk 0:02:48]} 16. Bxf6 {[%clk 0:02:34]}  Bxf6 {[%clk 0:02:47]} 17. Qd2 {[%clk 0:02:24]}  Be7 {[%clk 0:02:46]} 18. Nc3 {[%clk 0:02:22]}  Ne5 {[%clk 0:02:42]} 19. b3 {[%clk 0:02:21]}  Ng6 {[%clk 0:02:41]} 20. Qe3 {[%clk 0:02:16]}  Bg5 {[%clk 0:02:41]} 21. Qd3 {[%clk 0:02:16]}  Bxc1 {[%clk 0:02:41]} 22. Rxc1 {[%clk 0:02:17]}  Rfd8 {[%clk 0:02:41]} 23. Na4 {[%clk 0:02:15]}  Ba8 {[%clk 0:02:39]} 24. Rd1 {[%clk 0:02:13]}  Ne5 {[%clk 0:02:38]} 25. Qd2 {[%clk 0:02:11]}  Nc6 {[%clk 0:02:37]} 26. Nc2 {[%clk 0:02:09]}  b5 {[%clk 0:02:28]} 27. cxb5 {[%clk 0:02:08]}  axb5 {[%clk 0:02:29]} 28. Nc3 {[%clk 0:02:09]}  b4 {[%clk 0:02:27]} 29. Nb5 {[%clk 0:02:08]}  Ne5 {[%clk 0:02:19]} 30. Nbd4 {[%clk 0:02:00]}  d5 {[%clk 0:02:17]} 31. exd5 {[%clk 0:01:59]}  Bxd5 {[%clk 0:02:13]} 32. Nxb4 {[%clk 0:01:58]}  Ba8 {[%clk 0:02:11]} 33. Qe1 {[%clk 0:01:56]}  Rxd4 {[%clk 0:02:02]} 34. Rxd4 {[%clk 0:01:55]}  Qb6 {[%clk 0:01:55]} 35. Qf2 {[%clk 0:01:51]}  Rc1+ {[%clk 0:01:50]} 36. Bf1 {[%clk 0:01:51]}  Bb7 {[%clk 0:01:04]} 37. a4 {[%clk 0:01:36]}  Kh7 {[%clk 0:00:53]} 38. Rf4 {[%clk 0:01:24]}  g5 {[%clk 0:00:42]} 39. Qxb6 {[%clk 0:01:20]} 1-0


[Site "https://www.chess.com"]

[Event "Titled Tuesday Blitz January 17 Early 2023"]
[White "Martin, Lewis"]
[Black "Ortega Ruiz, Jose Miguel"]
[WhiteFideId "410551"]
[BlackFideId "2209713"]
[WhiteElo "2135"]
[BlackElo "2351"]
[Result "1-0"]
[Round "03"]
[TimeControl "180+2"]
[Date "2023.01.17"]
[WhiteClock "0:00:44"]
[BlackClock "0:01:40"]

1. e4 {[%clk 0:03:00]}  d6 {[%clk 0:02:59]} 2. d4 {[%clk 0:02:59]}  g6 {[%clk 0:02:59]} 3. Nf3 {[%clk 0:02:59]}  Bg7 {[%clk 0:02:59]} 4. Bc4 {[%clk 0:02:58]}  a6 {[%clk 0:03:00]} 5. a4 {[%clk 0:02:57]}  Bg4 {[%clk 0:02:58]} 6. c3 {[%clk 0:02:55]}  Nh6 {[%clk 0:02:55]} 7. Be3 {[%clk 0:02:52]}  O-O {[%clk 0:02:54]} 8. Nbd2 {[%clk 0:02:52]}  Bxf3 {[%clk 0:02:52]} 9. Nxf3 {[%clk 0:02:51]}  Ng4 {[%clk 0:02:53]} 10. Bd2 {[%clk 0:02:48]}  c5 {[%clk 0:02:49]} 11. O-O {[%clk 0:02:40]}  cxd4 {[%clk 0:02:48]} 12. cxd4 {[%clk 0:02:40]}  Nc6 {[%clk 0:02:49]} 13. Bc3 {[%clk 0:02:38]}  Rc8 {[%clk 0:02:49]} 14. Re1 {[%clk 0:02:36]}  h5 {[%clk 0:02:43]} 15. Qb3 {[%clk 0:02:32]}  Na5 {[%clk 0:02:36]} 16. Bxa5 {[%clk 0:02:27]}  Qxa5 {[%clk 0:02:37]} 17. h3 {[%clk 0:02:21]}  Nh6 {[%clk 0:02:34]} 18. Rac1 {[%clk 0:02:13]}  b6 {[%clk 0:02:29]} 19. e5 {[%clk 0:01:57]}  Nf5 {[%clk 0:02:27]} 20. g4 {[%clk 0:01:51]}  hxg4 {[%clk 0:02:26]} 21. hxg4 {[%clk 0:01:52]}  Nh6 {[%clk 0:02:26]} 22. Ng5 {[%clk 0:01:46]}  d5 {[%clk 0:02:23]} 23. Be2 {[%clk 0:01:41]}  Rxc1 {[%clk 0:02:24]} 24. Rxc1 {[%clk 0:01:40]}  Qd2 {[%clk 0:02:25]} 25. Qe3 {[%clk 0:01:38]}  Qxe3 {[%clk 0:02:24]} 26. fxe3 {[%clk 0:01:39]}  f6 {[%clk 0:02:16]} 27. Ne6 {[%clk 0:01:37]}  Rb8 {[%clk 0:02:14]} 28. exf6 {[%clk 0:01:33]}  exf6 {[%clk 0:02:13]} 29. Rc7 {[%clk 0:01:32]}  Nf7 {[%clk 0:02:13]} 30. Bxa6 {[%clk 0:01:30]}  Bh6 {[%clk 0:02:13]} 31. Kf2 {[%clk 0:01:29]}  Nd6 {[%clk 0:02:14]} 32. Bd3 {[%clk 0:01:12]}  Re8 {[%clk 0:02:09]} 33. Nf4 {[%clk 0:01:10]}  Ne4+ {[%clk 0:02:07]} 34. Bxe4 {[%clk 0:01:10]}  Rxe4 {[%clk 0:02:08]} 35. Nxd5 {[%clk 0:01:09]}  Bg5 {[%clk 0:02:01]} 36. Kf3 {[%clk 0:01:05]}  Re6 {[%clk 0:02:02]} 37. e4 {[%clk 0:01:00]}  Bd2 {[%clk 0:01:57]} 38. Rb7 {[%clk 0:00:52]}  Rc6 {[%clk 0:01:53]} 39. Rxb6 {[%clk 0:00:51]}  Rc1 {[%clk 0:01:54]} 40. Nxf6+ {[%clk 0:00:48]}  Kf8 {[%clk 0:01:51]} 41. e5 {[%clk 0:00:48]}  g5 {[%clk 0:01:48]} 42. Ke4 {[%clk 0:00:47]}  Re1+ {[%clk 0:01:47]} 43. Kf5 {[%clk 0:00:47]}  Be3 {[%clk 0:01:46]} 44. Rb8+ {[%clk 0:00:44]}  Kg7 {[%clk 0:01:41]} 45. Rb7+ {[%clk 0:00:45]}  Kf8 {[%clk 0:01:41]} 46. Kg6 {[%clk 0:00:45]}  Bxd4 {[%clk 0:01:40]} 47. Rf7# {[%clk 0:00:44]} 1-0


[Site "https://www.chess.com"]

[Event "Titled Tuesday Blitz January 17 Early 2023"]
[White "Sihite, Chelsie Monica Ignesias"]
[Black "Cramling Bellon, Anna"]
[WhiteFideId "7101198"]
[BlackFideId "32009232"]
[WhiteElo "2266"]
[BlackElo "2043"]
[Result "1-0"]
[Round "03"]
[TimeControl "180+2"]
[Date "2023.01.17"]
[WhiteClock "0:01:20"]
[BlackClock "0:00:56"]

1. e4 {[%clk 0:03:00]}  c5 {[%clk 0:02:59]} 2. Nf3 {[%clk 0:03:00]}  e6 {[%clk 0:02:57]} 3. d4 {[%clk 0:03:00]}  cxd4 {[%clk 0:02:58]} 4. Nxd4 {[%clk 0:02:59]}  Nf6 {[%clk 0:02:58]} 5. Nc3 {[%clk 0:02:58]}  Nc6 {[%clk 0:02:58]} 6. Nxc6 {[%clk 0:02:59]}  bxc6 {[%clk 0:02:58]} 7. Bd3 {[%clk 0:03:00]}  e5 {[%clk 0:02:59]} 8. O-O {[%clk 0:03:00]}  Be7 {[%clk 0:02:58]} 9. f4 {[%clk 0:02:59]}  d6 {[%clk 0:02:58]} 10. fxe5 {[%clk 0:02:59]}  dxe5 {[%clk 0:02:59]} 11. Qe1 {[%clk 0:02:59]}  O-O {[%clk 0:02:58]} 12. Kh1 {[%clk 0:02:59]}  Be6 {[%clk 0:02:55]} 13. Qg3 {[%clk 0:02:57]}  Qc7 {[%clk 0:02:36]} 14. Be2 {[%clk 0:02:53]}  Kh8 {[%clk 0:02:35]} 15. Bg5 {[%clk 0:02:44]}  Rad8 {[%clk 0:02:29]} 16. Rad1 {[%clk 0:02:43]}  h6 {[%clk 0:02:08]} 17. Qh4 {[%clk 0:02:37]}  Ng8 {[%clk 0:01:55]} 18. Bxe7 {[%clk 0:02:29]}  Qxe7 {[%clk 0:01:56]} 19. Qf2 {[%clk 0:02:25]}  Rxd1 {[%clk 0:01:48]} 20. Rxd1 {[%clk 0:02:22]}  f5 {[%clk 0:01:47]} 21. exf5 {[%clk 0:02:11]}  Rxf5 {[%clk 0:01:45]} 22. Qe3 {[%clk 0:02:09]}  Nf6 {[%clk 0:01:39]} 23. Qd2 {[%clk 0:01:46]}  Nd5 {[%clk 0:01:31]} 24. Nxd5 {[%clk 0:01:36]}  cxd5 {[%clk 0:01:08]} 25. Bg4 {[%clk 0:01:27]}  Rf4 {[%clk 0:01:06]} 26. Bxe6 {[%clk 0:01:25]}  Qxe6 {[%clk 0:01:02]} 27. Re1 {[%clk 0:01:24]}  e4 {[%clk 0:00:56]} 28. Qxf4 {[%clk 0:01:20]} 1-0


[Site "https://www.chess.com"]

[Event "Titled Tuesday Blitz January 17 Early 2023"]
[White "Jumanov, Elbek"]
[Black "TacticalSam94"]
[WhiteFideId "14202905"]
[WhiteElo "2155"]
[BlackElo "2382"]
[Result "1-0"]
[Round "03"]
[TimeControl "180+2"]
[Date "2023.01.17"]
[WhiteClock "0:02:05"]
[BlackClock "0:02:22"]

1. c4 {[%clk 0:03:00]}  Nf6 {[%clk 0:02:59]} 2. Nf3 {[%clk 0:03:00]}  c5 {[%clk 0:02:59]} 3. Nc3 {[%clk 0:02:59]}  Nc6 {[%clk 0:02:59]} 4. d4 {[%clk 0:02:59]}  cxd4 {[%clk 0:03:00]} 5. Nxd4 {[%clk 0:03:00]}  g6 {[%clk 0:03:00]} 6. g3 {[%clk 0:02:59]}  Bg7 {[%clk 0:03:00]} 7. Bg2 {[%clk 0:03:00]}  Nxd4 {[%clk 0:03:00]} 8. Qxd4 {[%clk 0:02:59]}  O-O {[%clk 0:03:01]} 9. O-O {[%clk 0:02:59]}  d6 {[%clk 0:03:02]} 10. Qd2 {[%clk 0:02:58]}  Be6 {[%clk 0:03:01]} 11. b3 {[%clk 0:02:58]}  Qc7 {[%clk 0:02:58]} 12. Bb2 {[%clk 0:02:57]}  a6 {[%clk 0:02:58]} 13. Rac1 {[%clk 0:02:56]}  Qa5 {[%clk 0:02:54]} 14. Rfd1 {[%clk 0:02:55]}  Rfe8 {[%clk 0:02:54]} 15. Bxb7 {[%clk 0:02:46]}  Rad8 {[%clk 0:02:41]} 16. Nd5 {[%clk 0:02:34]}  Qxd2 {[%clk 0:02:40]} 17. Nxf6+ {[%clk 0:02:33]}  Bxf6 {[%clk 0:02:28]} 18. Rxd2 {[%clk 0:02:34]}  Bxb2 {[%clk 0:02:27]} 19. Rxb2 {[%clk 0:02:34]}  d5 {[%clk 0:02:28]} 20. Bxa6 {[%clk 0:02:20]}  dxc4 {[%clk 0:02:25]} 21. Bxc4 {[%clk 0:02:19]}  Bxc4 {[%clk 0:02:15]} 22. Rxc4 {[%clk 0:02:18]}  Rd6 {[%clk 0:02:15]} 23. a4 {[%clk 0:02:16]}  Red8 {[%clk 0:02:16]} 24. b4 {[%clk 0:02:13]}  Rd1+ {[%clk 0:02:17]} 25. Kg2 {[%clk 0:02:13]}  Ra1 {[%clk 0:02:18]} 26. b5 {[%clk 0:02:11]}  Rdd1 {[%clk 0:02:19]} 27. b6 {[%clk 0:02:10]}  h5 {[%clk 0:02:19]} 28. b7 {[%clk 0:02:09]}  h4 {[%clk 0:02:20]} 29. b8=Q+ {[%clk 0:02:09]}  Kg7 {[%clk 0:02:21]} 30. Rxh4 {[%clk 0:02:08]}  Rg1+ {[%clk 0:02:21]} 31. Kh3 {[%clk 0:02:06]}  Ra3 {[%clk 0:02:22]} 32. Qh8# {[%clk 0:02:05]} 1-0


[Site "https://www.chess.com"]

[Event "Titled Tuesday Blitz January 17 Early 2023"]
[White "Garrido, Denis"]
[Black "Becerra, Juan David"]
[WhiteFideId "601217"]
[BlackFideId "4404998"]
[WhiteElo "2205"]
[BlackElo "2382"]
[Result "0-1"]
[Round "03"]
[TimeControl "180+2"]
[Date "2023.01.17"]
[WhiteClock "0:01:37"]
[BlackClock "0:00:19"]

1. e4 {[%clk 0:02:55]}  e5 {[%clk 0:02:53]} 2. Nf3 {[%clk 0:02:54]}  Nc6 {[%clk 0:02:48]} 3. Bb5 {[%clk 0:02:54]}  a6 {[%clk 0:02:01]} 4. Ba4 {[%clk 0:02:53]}  f5 {[%clk 0:01:51]} 5. d3 {[%clk 0:02:52]}  fxe4 {[%clk 0:01:44]} 6. dxe4 {[%clk 0:02:53]}  d6 {[%clk 0:01:37]} 7. Nc3 {[%clk 0:02:49]}  Nf6 {[%clk 0:01:29]} 8. Bg5 {[%clk 0:02:41]}  Be7 {[%clk 0:01:15]} 9. Bb3 {[%clk 0:02:40]}  Na5 {[%clk 0:01:12]} 10. Bxf6 {[%clk 0:02:37]}  Bxf6 {[%clk 0:01:08]} 11. Qd5 {[%clk 0:02:36]}  Nxb3 {[%clk 0:01:05]} 12. axb3 {[%clk 0:02:37]}  c6 {[%clk 0:01:03]} 13. Qd3 {[%clk 0:02:34]}  O-O {[%clk 0:01:00]} 14. h3 {[%clk 0:02:33]}  Be6 {[%clk 0:00:46]} 15. Rd1 {[%clk 0:02:28]}  Be7 {[%clk 0:00:44]} 16. O-O {[%clk 0:02:27]}  Qe8 {[%clk 0:00:44]} 17. Nd2 {[%clk 0:02:14]}  Rd8 {[%clk 0:00:41]} 18. Qg3 {[%clk 0:02:08]}  Qh5 {[%clk 0:00:40]} 19. Nc4 {[%clk 0:02:04]}  Rf6 {[%clk 0:00:39]} 20. Rd2 {[%clk 0:01:58]}  Rg6 {[%clk 0:00:32]} 21. Qh2 {[%clk 0:01:44]}  Qxh3 {[%clk 0:00:31]} 22. Qxh3 {[%clk 0:01:44]}  Bxh3 {[%clk 0:00:30]} 23. Ne3 {[%clk 0:01:44]}  Bg5 {[%clk 0:00:29]} 24. Kh2 {[%clk 0:01:44]}  Bxe3 {[%clk 0:00:28]} 25. fxe3 {[%clk 0:01:44]}  Be6 {[%clk 0:00:27]} 26. Rfd1 {[%clk 0:01:44]}  Bg4 {[%clk 0:00:23]} 27. Rf1 {[%clk 0:01:43]}  Rf8 {[%clk 0:00:24]} 28. Rdf2 {[%clk 0:01:43]}  Rxf2 {[%clk 0:00:24]} 29. Rxf2 {[%clk 0:01:44]}  Rf6 {[%clk 0:00:22]} 30. Rd2 {[%clk 0:01:44]}  Kf7 {[%clk 0:00:21]} 31. Kg3 {[%clk 0:01:44]}  Bc8 {[%clk 0:00:21]} 32. b4 {[%clk 0:01:44]}  Ke7 {[%clk 0:00:22]} 33. Ne2 {[%clk 0:01:42]}  Rg6+ {[%clk 0:00:21]} 34. Kf2 {[%clk 0:01:42]}  h5 {[%clk 0:00:20]} 35. Ng1 {[%clk 0:01:42]}  Rg4 {[%clk 0:00:19]} 36. Kf3 {[%clk 0:01:39]}  h4 {[%clk 0:00:19]} 37. Ne2 {[%clk 0:01:39]}  Rg6 {[%clk 0:00:18]} 38. c4 {[%clk 0:01:40]}  Bg4+ {[%clk 0:00:19]} 39. Kf2 {[%clk 0:01:39]}  Bxe2 {[%clk 0:00:20]} 40. Rxe2 {[%clk 0:01:38]}  Rg4 {[%clk 0:00:20]} 41. Kf3 {[%clk 0:01:38]}  Rg3+ {[%clk 0:00:20]} 42. Kf2 {[%clk 0:01:38]}  g5 {[%clk 0:00:21]} 43. Rd2 {[%clk 0:01:38]}  Ke6 {[%clk 0:00:18]} 44. b5 {[%clk 0:01:38]}  axb5 {[%clk 0:00:18]} 45. cxb5 {[%clk 0:01:39]}  d5 {[%clk 0:00:18]} 46. bxc6 {[%clk 0:01:39]}  bxc6 {[%clk 0:00:18]} 47. exd5+ {[%clk 0:01:39]}  cxd5 {[%clk 0:00:18]} 48. Rc2 {[%clk 0:01:39]}  d4 {[%clk 0:00:19]} 49. exd4 {[%clk 0:01:40]}  exd4 {[%clk 0:00:19]} 50. Rc6+ {[%clk 0:01:40]}  Kf5 {[%clk 0:00:19]} 51. Rc5+ {[%clk 0:01:40]}  Ke4 {[%clk 0:00:19]} 52. b4 {[%clk 0:01:40]}  g4 {[%clk 0:00:19]} 53. b5 {[%clk 0:01:40]}  Rb3 {[%clk 0:00:19]} 54. Kg1 {[%clk 0:01:38]}  Rb1+ {[%clk 0:00:17]} 55. Kh2 {[%clk 0:01:38]}  g3+ {[%clk 0:00:18]} 56. Kh3 {[%clk 0:01:38]}  Rh1+ {[%clk 0:00:18]} 57. Kg4 {[%clk 0:01:39]}  d3 {[%clk 0:00:18]} 58. Rc8 {[%clk 0:01:36]}  d2 {[%clk 0:00:18]} 59. Re8+ {[%clk 0:01:36]}  Kd3 {[%clk 0:00:19]} 60. Rd8+ {[%clk 0:01:36]}  Kc2 {[%clk 0:00:19]} 61. Rc8+ {[%clk 0:01:37]}  Kb3 {[%clk 0:00:19]} 62. Rd8 {[%clk 0:01:34]}  d1=Q+ {[%clk 0:00:20]} 63. Rxd1 {[%clk 0:01:35]}  Rxd1 {[%clk 0:00:20]} 64. Kxh4 {[%clk 0:01:36]}  Rd5 {[%clk 0:00:19]} 65. Kxg3 {[%clk 0:01:35]}  Rxb5 {[%clk 0:00:20]} 66. Kf4 {[%clk 0:01:36]}  Kc4 {[%clk 0:00:21]} 67. g4 {[%clk 0:01:37]}  Kd5 {[%clk 0:00:21]} 68. Kf5 {[%clk 0:01:38]}  Kd6+ {[%clk 0:00:22]} 69. Kf6 {[%clk 0:01:38]}  Rb1 {[%clk 0:00:22]} 70. g5 {[%clk 0:01:38]}  Rf1+ {[%clk 0:00:23]} 71. Kg7 {[%clk 0:01:38]}  Ke7 {[%clk 0:00:22]} 72. g6 {[%clk 0:01:39]}  Rf6 {[%clk 0:00:22]} 73. Kh7 {[%clk 0:01:38]}  Rf1 {[%clk 0:00:22]} 74. g7 {[%clk 0:01:39]}  Rh1+ {[%clk 0:00:21]} 75. Kg6 {[%clk 0:01:39]}  Rg1+ {[%clk 0:00:19]} 76. Kh7 {[%clk 0:01:39]}  Kf7 {[%clk 0:00:19]} 77. Kh8 {[%clk 0:01:37]}  Rh1# {[%clk 0:00:19]} 0-1


[Site "https://www.chess.com"]

[Event "Titled Tuesday Blitz January 17 Early 2023"]
[White "Nordquelle, Daniel"]
[Black "Mestnikov, Aisen"]
[WhiteFideId "1519042"]
[BlackFideId "34130117"]
[WhiteElo "2151"]
[BlackElo "2078"]
[Result "0-1"]
[Round "03"]
[TimeControl "180+2"]
[Date "2023.01.17"]
[WhiteClock "0:00:11"]
[BlackClock "0:00:03"]

1. e4 {[%clk 0:02:51]}  e5 {[%clk 0:02:59]} 2. Nf3 {[%clk 0:02:51]}  Nc6 {[%clk 0:03:00]} 3. Bc4 {[%clk 0:02:51]}  Bc5 {[%clk 0:03:00]} 4. d3 {[%clk 0:02:50]}  Nf6 {[%clk 0:02:57]} 5. O-O {[%clk 0:02:47]}  d6 {[%clk 0:02:57]} 6. a4 {[%clk 0:02:43]}  a5 {[%clk 0:02:57]} 7. c3 {[%clk 0:02:37]}  Ba7 {[%clk 0:02:56]} 8. Nbd2 {[%clk 0:02:36]}  Be6 {[%clk 0:02:54]} 9. Bb5 {[%clk 0:02:18]}  O-O {[%clk 0:02:52]} 10. Nc4 {[%clk 0:02:06]}  Ne7 {[%clk 0:02:50]} 11. Ne3 {[%clk 0:01:59]}  Ng6 {[%clk 0:02:47]} 12. Qc2 {[%clk 0:01:47]}  d5 {[%clk 0:02:40]} 13. exd5 {[%clk 0:01:40]}  Nxd5 {[%clk 0:02:41]} 14. Re1 {[%clk 0:01:21]}  Ngf4 {[%clk 0:01:40]} 15. Nxd5 {[%clk 0:01:08]}  Bxd5 {[%clk 0:01:41]} 16. Nxe5 {[%clk 0:01:03]}  Qg5 {[%clk 0:00:46]} 17. g3 {[%clk 0:00:58]}  Nh3+ {[%clk 0:00:41]} 18. Kf1 {[%clk 0:00:58]}  Qf5 {[%clk 0:00:38]} 19. f4 {[%clk 0:00:50]}  Nf2 {[%clk 0:00:04]} 20. Bd7 {[%clk 0:00:43]}  Qh5 {[%clk 0:00:03]} 21. Qe2 {[%clk 0:00:33]}  Qxh2 {[%clk 0:00:03]} 22. Qd2 {[%clk 0:00:13]}  Qg2+ {[%clk 0:00:04]} 23. Ke2 {[%clk 0:00:13]}  Ne4+ {[%clk 0:00:02]} 24. Kd1 {[%clk 0:00:11]}  Nxd2 {[%clk 0:00:02]} 25. Bxd2 {[%clk 0:00:12]}  Bf3+ {[%clk 0:00:03]} 26. Kc2 {[%clk 0:00:12]}  Bd5 {[%clk 0:00:03]} 27. Rg1 {[%clk 0:00:11]}  Bxg1 {[%clk 0:00:03]} 0-1


[Site "https://www.chess.com"]

[Event "Titled Tuesday Blitz January 17 Early 2023"]
[White "Cueto, Jonny"]
[Black "Rengifo Blancas, Renzo Jhonathan"]
[WhiteFideId "3300145"]
[BlackFideId "3807185"]
[WhiteElo "2122"]
[BlackElo "2131"]
[Result "0-1"]
[Round "03"]
[TimeControl "180+2"]
[Date "2023.01.17"]
[WhiteClock "0:00:04"]
[BlackClock "0:01:56"]

1. d4 {[%clk 0:03:00]}  d5 {[%clk 0:02:31]} 2. Bf4 {[%clk 0:03:00]}  Nf6 {[%clk 0:02:21]} 3. e3 {[%clk 0:03:00]}  e6 {[%clk 0:02:16]} 4. Nf3 {[%clk 0:03:00]}  c5 {[%clk 0:02:16]} 5. Nbd2 {[%clk 0:03:00]}  Nc6 {[%clk 0:02:16]} 6. c3 {[%clk 0:03:01]}  Bd6 {[%clk 0:02:15]} 7. Ne5 {[%clk 0:03:00]}  Qc7 {[%clk 0:02:14]} 8. Ndf3 {[%clk 0:02:59]}  O-O {[%clk 0:02:11]} 9. Bd3 {[%clk 0:02:59]}  b6 {[%clk 0:02:11]} 10. g4 {[%clk 0:02:58]}  Bb7 {[%clk 0:02:11]} 11. h4 {[%clk 0:02:19]}  Ne7 {[%clk 0:02:10]} 12. h5 {[%clk 0:02:08]}  Ne4 {[%clk 0:02:09]} 13. Nd2 {[%clk 0:01:54]}  f6 {[%clk 0:02:08]} 14. Bxe4 {[%clk 0:01:31]}  dxe4 {[%clk 0:02:08]} 15. Nec4 {[%clk 0:01:05]}  Bxf4 {[%clk 0:02:08]} 16. exf4 {[%clk 0:01:06]}  Qxf4 {[%clk 0:02:08]} 17. dxc5 {[%clk 0:00:53]}  e3 {[%clk 0:02:07]} 18. Nxe3 {[%clk 0:00:12]}  Bxh1 {[%clk 0:02:06]} 19. Qb3 {[%clk 0:00:12]}  Bd5 {[%clk 0:02:02]} 20. c4 {[%clk 0:00:12]}  Bf3 {[%clk 0:02:01]} 21. cxb6 {[%clk 0:00:11]}  axb6 {[%clk 0:02:00]} 22. c5 {[%clk 0:00:09]}  Nd5 {[%clk 0:01:56]} 23. cxb6 {[%clk 0:00:08]}  Nxe3 {[%clk 0:01:55]} 24. fxe3 {[%clk 0:00:09]}  Qg3+ {[%clk 0:01:55]} 25. Kf1 {[%clk 0:00:03]}  Qg2+ {[%clk 0:01:55]} 26. Ke1 {[%clk 0:00:04]}  Qe2# {[%clk 0:01:56]} 0-1


[Site "https://www.chess.com"]

[Event "Titled Tuesday Blitz January 17 Early 2023"]
[White "Jenkins, Drake"]
[Black "Luukkonen, Tommi"]
[WhiteFideId "2022397"]
[BlackFideId "501808"]
[WhiteElo "2130"]
[BlackElo "2292"]
[Result "1-0"]
[Round "03"]
[TimeControl "180+2"]
[Date "2023.01.17"]
[WhiteClock "0:00:09"]
[BlackClock "0:00:29"]

1. Nf3 {[%clk 0:03:00]}  d6 {[%clk 0:02:43]} 2. g3 {[%clk 0:03:00]}  g6 {[%clk 0:02:43]} 3. Bg2 {[%clk 0:03:00]}  Bg7 {[%clk 0:02:43]} 4. c4 {[%clk 0:03:00]}  e5 {[%clk 0:02:44]} 5. Nc3 {[%clk 0:03:00]}  f5 {[%clk 0:02:43]} 6. d3 {[%clk 0:02:59]}  Nf6 {[%clk 0:02:44]} 7. O-O {[%clk 0:02:59]}  O-O {[%clk 0:02:44]} 8. Rb1 {[%clk 0:03:00]}  a5 {[%clk 0:02:44]} 9. a3 {[%clk 0:02:59]}  Nc6 {[%clk 0:02:45]} 10. b4 {[%clk 0:02:59]}  axb4 {[%clk 0:02:46]} 11. axb4 {[%clk 0:03:00]}  Kh8 {[%clk 0:02:45]} 12. b5 {[%clk 0:03:00]}  Ne7 {[%clk 0:02:45]} 13. Bb2 {[%clk 0:02:53]}  c6 {[%clk 0:02:44]} 14. Ra1 {[%clk 0:02:51]}  Rxa1 {[%clk 0:02:43]} 15. Qxa1 {[%clk 0:02:51]}  h6 {[%clk 0:02:38]} 16. Nd2 {[%clk 0:02:40]}  g5 {[%clk 0:02:36]} 17. bxc6 {[%clk 0:02:33]}  bxc6 {[%clk 0:02:36]} 18. Qa7 {[%clk 0:02:18]}  f4 {[%clk 0:02:35]} 19. Nce4 {[%clk 0:02:16]}  Nxe4 {[%clk 0:02:32]} 20. Nxe4 {[%clk 0:02:14]}  Nf5 {[%clk 0:02:30]} 21. Rc1 {[%clk 0:01:33]}  Be6 {[%clk 0:02:22]} 22. c5 {[%clk 0:01:22]}  d5 {[%clk 0:02:19]} 23. Nd6 {[%clk 0:01:22]}  Nxd6 {[%clk 0:02:15]} 24. cxd6 {[%clk 0:01:22]}  Rf7 {[%clk 0:02:09]} 25. Qc5 {[%clk 0:01:08]}  Bd7 {[%clk 0:02:07]} 26. Ra1 {[%clk 0:00:58]}  Qf6 {[%clk 0:02:06]} 27. Ra8+ {[%clk 0:00:45]}  Kh7 {[%clk 0:02:04]} 28. Ra7 {[%clk 0:00:41]}  fxg3 {[%clk 0:02:00]} 29. hxg3 {[%clk 0:00:32]}  Bf8 {[%clk 0:01:56]} 30. Rxd7 {[%clk 0:00:21]}  Rxd7 {[%clk 0:01:55]} 31. Qxc6 {[%clk 0:00:21]}  Rxd6 {[%clk 0:01:51]} 32. Qb7+ {[%clk 0:00:16]}  Bg7 {[%clk 0:01:46]} 33. Bxd5 {[%clk 0:00:16]}  Rb6 {[%clk 0:01:43]} 34. Qc8 {[%clk 0:00:10]}  h5 {[%clk 0:01:00]} 35. Be4+ {[%clk 0:00:10]}  Kh6 {[%clk 0:00:59]} 36. Qg8 {[%clk 0:00:10]}  g4 {[%clk 0:00:29]} 37. Bc1+ {[%clk 0:00:09]} 1-0


[Site "https://www.chess.com"]